fUSD/lending_fUSD_20251025
["ID","MTS","AMOUNT","RATE_DAILY","PERIOD"]
[392400991,1761433899057,-500.0,0.00032876,9]
[392400994,1761433899233,-500.0,0.00032876,9]
[392400996,1761433899373,-502.33082476,0.00032876,9]
[392400999,1761433899491,-505.51480121,0.00032876,9]
[392401000,1761433899564,-500.0,0.00032876,9]
[392401002,1761433899697,-502.58549001,0.00032876,9]
[392401005,1761433899882,-500.0,0.00032876,9]
[392401007,1761433899981,-500.0,0.00032876,9]
[392401009,1761433900019,-500.0,0.00032876,9]
[392401010,1761433900097,-502.08302948,0.00032876,9]
[392401011,1761433900161,-502.41397512,0.00032876,9]
[392401013,1761433900186,-500.0,0.00032876,9]
[392401015,1761433900297,-500.0,0.00032876,9]
[392401018,1761433900496,-500.0,0.00032876,9]
[392401021,1761433900620,-500.0,0.00032876,9]
[392401022,1761433900664,-500.0,0.00032876,9]
[392401024,1761433900801,-500.0,0.00032876,9]
[392401027,1761433900880,-502.52898681,0.00032876,9]
[392401028,1761433900936,-500.0,0.00032876,9]
[392401030,1761433900959,-500.0,0.00032876,9]
[392401032,1761433900992,-500.0,0.00032876,9]
[392401034,1761433901037,-500.00482733,0.00032876,9]
[392401036,1761433901088,-500.0,0.00032876,9]
[392401038,1761433901128,-505.42968518,0.00032876,9]
[392401039,1761433901183,-500.0,0.00032876,9]
[392401042,1761433901257,-501.53404905,0.00032876,9]
[392401043,1761433901406,-500.0,0.00032876,9]
[392401045,1761433901469,-500.0,0.00032876,9]
[392401048,1761433901552,-500.0,0.00032876,9]
[392401050,1761433901725,-500.0,0.00032876,9]
[392401051,1761433901737,-500.0,0.00032876,9]
[392401053,1761433901748,-518.27202116,0.00032876,9]
[392401055,1761433901861,-500.0,0.00032876,9]
[392401057,1761433901904,-500.0,0.00032876,9]
[392401058,1761433901933,-500.0,0.00032876,9]
[392401059,1761433901992,-500.0,0.00032876,9]
[392401061,1761433902036,-334.208179,0.00032876,9]
[392401063,1761433902063,-500.0,0.00032876,9]
[392401065,1761433902137,-500.0,0.00032876,9]
[392401067,1761433902217,-500.0,0.00032876,9]
[392401069,1761433902257,-500.0,0.00032876,9]
[392401071,1761433902273,-500.0,0.00032876,9]
[392401073,1761433902361,-504.04757402,0.00032876,9]
[392401074,1761433902408,-500.0,0.00032876,9]
[392401076,1761433902552,-509.82302682,0.00032876,9]
[392401078,1761433902592,-500.0,0.00032876,9]
[392401080,1761433902793,-500.0,0.00032876,9]
[392401082,1761433902865,-500.0,0.00032876,9]
[392401084,1761433902905,-500.0,0.00032876,9]
[392401086,1761433902962,-500.0,0.00032876,9]
[392401087,1761433903108,-151.0,0.00032876,30]
[392401088,1761433903165,-151.0,0.00032876,30]
[392401091,1761433903257,-500.0,0.00032876,9]
[392401092,1761433903329,-500.0,0.00032876,9]
[392401096,1761433903488,-500.0,0.00032876,9]
[392401097,1761433903544,-502.59355419,0.00032876,9]
[392401098,1761433903569,-500.0,0.00032876,9]
[392401099,1761433903645,-775.25,0.00032876,14]
[392401100,1761433903833,-500.0,0.00032876,9]
[392401101,1761433903976,-509.37057779,0.00032876,9]
[392401102,1761433904052,-500.0,0.00032876,9]
[392401103,1761433904143,-500.0,0.00032876,9]
[392401104,1761433904313,-537.35,0.00032876,9]
[392401105,1761433904343,-500.0,0.00032876,9]
[392401106,1761433904393,-500.0,0.00032876,9]
[392401107,1761433904568,-399.48474186,0.00032876,9]
[392401108,1761433904762,-500.0,0.00032876,9]
[392401109,1761433904957,-151.0,0.00032876,10]
[392401110,1761433905054,-151.0,0.00032876,10]
[392401111,1761433905196,-151.0,0.00032876,10]
[392401112,1761433905213,-151.0,0.00032876,10]
[392401113,1761433905304,-644.41800721,0.00032876,9]
[392401114,1761433905332,-151.0,0.00032876,10]
[392401115,1761433905392,-151.0,0.00032876,10]
[392401116,1761433905524,-506.21960554,0.00032876,9]
[392401117,1761433905625,-500.0,0.00032876,9]
[392401118,1761433905777,-151.0,0.00032876,10]
[392401119,1761433905802,-151.0,0.00032876,10]
[392401120,1761433905816,-152.843433,0.00032876,30]
[392401121,1761433905928,-500.0,0.00032876,9]
[392401122,1761433905982,-500.0,0.00032876,9]
[392401123,1761433906030,-500.0,0.00032876,9]
[392401124,1761433906041,-500.0,0.00032876,9]
[392401125,1761433906069,-600.57237481,0.00032876,9]
[392401126,1761433906168,-500.0,0.00032876,9]
[392401127,1761433906202,-151.0,0.00032876,30]
[392401129,1761433906258,-500.0,0.00032876,9]
[392401131,1761433906302,-151.0,0.00032876,30]
[392401133,1761433906334,-151.0,0.00032876,30]
[392401136,1761433906377,-151.0,0.00032876,30]
[392401138,1761433906429,-198.133824,0.00032876,30]
[392401139,1761433906507,-575.55592323,0.00032876,9]
[392401140,1761433906518,-151.0,0.00032876,30]
[392401142,1761433906536,-500.0,0.00032876,9]
[392401143,1761433906601,-151.0,0.00032876,30]
[392401145,1761433906661,-151.0,0.00032876,30]
[392401147,1761433906702,-500.0,0.00032876,9]
[392401149,1761433906733,-500.0,0.00032876,9]
[392401150,1761433906777,-151.0,0.00032876,30]
[392401153,1761433906809,-151.0,0.00032876,30]
[392401154,1761433906844,-500.0,0.00032876,9]
[392401156,1761433906960,-500.0,0.00032876,9]
[392401158,1761433906982,-151.0,0.00032876,30]
[392401161,1761433907046,-500.0,0.00032876,9]
[392401163,1761433907122,-151.0,0.00032876,30]
[392401165,1761433907195,-151.0,0.00032876,30]
[392401167,1761433907224,-263.092249,0.00032876,30]
[392401168,1761433907333,-501.73847407,0.00032876,9]
[392401169,1761433907369,-500.0,0.00032876,9]
[392401171,1761433907394,-500.0,0.00032876,9]
[392401173,1761433907406,-500.0,0.00032876,9]
[392401176,1761433907528,-500.0,0.00032876,9]
[392401179,1761433907543,-500.0,0.00032876,9]
[392401180,1761433907566,-500.0,0.00032876,9]
[392401183,1761433907602,-571.71,0.00032876,9]
[392401186,1761433907836,-500.0,0.00032876,9]
[392401188,1761433907959,-500.0,0.00032876,9]
[392401189,1761433908081,-500.0,0.00032876,9]
[392401190,1761433908098,-500.0,0.00032876,9]
[392401193,1761433908317,-500.0,0.00032876,9]
[392401195,1761433908358,-500.0,0.00032876,9]
[392401197,1761433908410,-500.0,0.00032876,9]
[392401198,1761433908454,-151.0,0.00032876,30]
[392401201,1761433908674,-500.0,0.00032876,2]
[392401203,1761433908790,-500.0,0.00032876,2]
[392401206,1761433908844,-500.0,0.00032876,9]
[392401207,1761433908932,-551.64760212,0.00032876,9]
[392401209,1761433909010,-500.0,0.00032876,9]
[392401212,1761433909170,-472.31292691,0.00032876,9]
[392401213,1761433909252,-151.0,0.00032876,30]
[392401215,1761433909323,-151.0,0.00032876,30]
[392401220,1761433909480,-151.0,0.00032876,30]
[392401221,1761433909528,-151.0,0.00032876,30]
[392401222,1761433909637,-501.70075627,0.00032876,9]
[392401225,1761433909749,-151.0,0.00032876,30]
[392401227,1761433909886,-151.0,0.00032876,30]
[392401228,1761433910018,-151.0,0.00032876,30]
[392401230,1761433910145,-151.0,0.00032876,30]
[392401232,1761433910229,-500.0,0.00032876,9]
[392401234,1761433910297,-500.0,0.00032876,9]
[392401236,1761433910363,-151.0,0.00032876,30]
[392401237,1761433910421,-151.0,0.00032876,30]
[392401240,1761433910595,-465.00181226,0.00032876,9]
[392401241,1761433910618,-151.0,0.00032876,30]
[392401243,1761433910672,-151.0,0.00032876,30]
[392401245,1761433910712,-151.0,0.00032876,30]
[392401246,1761433910758,-500.0,0.00032876,9]
[392401248,1761433910820,-151.0,0.00032876,30]
[392401250,1761433911002,-500.0,0.00032876,9]
[392401253,1761433911080,-287.963288,0.00032876,30]
[392401255,1761433911281,-500.0,0.00032876,9]
[392401257,1761433911352,-500.0,0.00032876,9]
[392401259,1761433911440,-500.0,0.00032876,9]
[392401262,1761433911555,-500.0,0.00032876,9]
[392401263,1761433911720,-500.0,0.00032876,9]
[392401266,1761433911933,-500.0,0.00032876,9]
[392401268,1761433911993,-529.93007033,0.00032876,9]
[392401270,1761433912081,-500.0,0.00032876,9]
[392401272,1761433912206,-500.0,0.00032876,9]
[392401274,1761433912362,-520.13,0.00032876,9]
[392401276,1761433912433,-500.0,0.00032876,9]
[392401278,1761433912575,-500.0,0.00032876,9]
[392401284,1761433912856,-648.44513299,0.00032876,9]
[392401285,1761433912888,-500.0,0.00032876,9]
[392401289,1761433913105,-151.0,0.00032876,30]
[392401291,1761433913273,-500.0,0.00032876,9]
[392401292,1761433913301,-500.0,0.00032876,9]
[392401294,1761433913372,-500.0,0.00032876,9]
[392401296,1761433913397,-151.0,0.00032876,30]
[392401297,1761433913453,-151.0,0.00032876,30]
[392401299,1761433913517,-151.0,0.00032876,30]
[392401300,1761433913545,-501.68144181,0.00032876,9]
[392401302,1761433913604,-151.0,0.00032876,30]
[392401305,1761433913801,-151.0,0.00032876,30]
[392401307,1761433913965,-151.0,0.00032876,30]
[392401308,1761433914032,-501.53769134,0.00032876,9]
[392401311,1761433914247,-151.0,0.00032876,30]
[392401313,1761433914297,-873.21,0.00032876,9]
[392401315,1761433914336,-500.0,0.00032876,9]
[392401317,1761433914424,-151.0,0.00032876,30]
[392401319,1761433914468,-245.016049,0.00032876,30]
[392401320,1761433914478,-151.0,0.00032876,30]
[392401321,1761433914509,-532.30967204,0.00032876,9]
[392401322,1761433914546,-503.06597166,0.00032876,9]
[392401323,1761433914573,-500.0,0.00032876,9]
[392401324,1761433914586,-151.0,0.00032876,30]
[392401325,1761433914600,-501.58894918,0.00032876,9]
[392401326,1761433914646,-151.0,0.00032876,30]
[392401327,1761433914667,-300.166188,0.00032876,30]
[392401330,1761433914733,-500.0,0.00032876,9]
[392401332,1761433914863,-502.25637744,0.00032876,9]
[392401334,1761433914968,-500.0,0.00032876,9]
[392401336,1761433915020,-501.77823117,0.00032876,9]
[392401338,1761433915077,-491.87735119,0.00032876,9]
[392401340,1761433915217,-500.0,0.00032876,9]
[392401342,1761433915318,-502.55014768,0.00032876,9]
[392401344,1761433915405,-3224.58,0.00032876,2]
[392401345,1761433915520,-500.0,0.00032876,9]
[392401347,1761433915532,-509.86,0.00032876,9]
[392401349,1761433915564,-151.0,0.00032876,30]
[392401351,1761433915608,-151.0,0.00032876,30]
[392401353,1761433915635,-500.0,0.00032876,9]
[392401355,1761433915673,-151.0,0.00032876,30]
[392401357,1761433915768,-500.0,0.00032876,9]
[392401359,1761433915857,-151.0,0.00032876,30]
[392401361,1761433915977,-500.0,0.00032876,9]
[392401364,1761433916053,-151.0,0.00032876,30]
[392401366,1761433916172,-151.0,0.00032876,30]
[392401368,1761433916261,-268.37929,0.00032876,30]
[392401370,1761433916344,-503.29561081,0.00032876,9]
[392401372,1761433916436,-500.0,0.00032876,9]
[392401373,1761433916544,-501.5200807,0.00032876,9]
[392401375,1761433916579,-500.0,0.00032876,9]
[392401376,1761433916771,-502.41696906,0.00032876,9]
[392401378,1761433916825,-500.0,0.00032876,9]
[392401380,1761433916835,-151.0,0.00032876,30]
[392401382,1761433916944,-500.0,0.00032876,9]
[392401384,1761433916969,-507.43757823,0.00032876,9]
[392401385,1761433916993,-500.0,0.00032876,9]
[392401386,1761433917053,-500.0,0.00032876,9]
[392401388,1761433917100,-501.0158984,0.00032876,9]
[392401390,1761433917125,-518.74,0.00032876,9]
[392401392,1761433917144,-500.0,0.00032876,9]
[392401395,1761433917200,-500.0,0.00032876,9]
[392401396,1761433917292,-500.0,0.00032876,9]
[392401399,1761433917332,-500.0,0.00032876,9]
[392401400,1761433917363,-500.0,0.00032876,9]
[392401402,1761433917392,-500.0,0.00032876,9]
[392401404,1761433917405,-500.0,0.00032876,9]
[392401405,1761433917421,-773.65,0.00032876,9]
[392401407,1761433917524,-500.0,0.00032876,9]
[392401409,1761433917555,-500.0,0.00032876,9]
[392401411,1761433917630,-441.04256733,0.00032876,9]
[392401413,1761433917669,-500.0,0.00032876,9]
[392401415,1761433917803,-522.05539294,0.00032876,9]
[392401417,1761433917926,-500.0,0.00032876,9]
[392401418,1761433917956,-500.0,0.00032876,9]
[392401420,1761433918019,-500.0,0.00032876,9]
[392401422,1761433918053,-500.0,0.00032876,9]
[392401425,1761433918112,-500.0,0.00032876,9]
[392401427,1761433918249,-518.9,0.00032876,9]
[392401430,1761433918336,-500.0,0.00032876,9]
[392401432,1761433918349,-500.0,0.00032876,9]
[392401434,1761433918376,-151.0,0.00032876,30]
[392401436,1761433918420,-270.247048,0.00032876,30]
[392401437,1761433918433,-500.0,0.00032876,9]
[392401438,1761433918443,-500.0,0.00032876,9]
[392401440,1761433918517,-500.0,0.00032876,9]
[392401442,1761433918568,-500.0,0.00032876,9]
[392401444,1761433918616,-500.0,0.00032876,9]
[392401445,1761433918662,-500.0,0.00032876,9]
[392401447,1761433918709,-501.83585211,0.00032876,9]
[392401449,1761433918754,-500.0,0.00032876,9]
[392401451,1761433918816,-500.0,0.00032876,9]
[392401453,1761433918933,-500.0,0.00032876,9]
[392401455,1761433918965,-500.0,0.00032876,9]
[392401457,1761433919024,-502.14965698,0.00032876,9]
[392401459,1761433919067,-500.0,0.00032876,9]
[392401460,1761433919185,-500.0,0.00032876,9]
[392401464,1761433919282,-500.0,0.00032876,9]
[392401465,1761433919356,-500.0,0.00032876,2]
[392401468,1761433919416,-500.0,0.00032876,9]
[392401471,1761433919509,-500.0,0.00032876,9]
[392401473,1761433919538,-500.0,0.00032876,9]
[392401474,1761433919599,-500.0,0.00032876,9]
[392401476,1761433919777,-500.0,0.00032876,9]
[392401479,1761433919824,-500.0,0.00032876,9]
[392401481,1761433919860,-500.0,0.00032876,9]
[392401482,1761433919916,-151.0,0.00032876,30]
[392401486,1761433920088,-500.0,0.00032876,9]
[392401489,1761433920126,-501.16598864,0.00032876,9]
[392401491,1761433920155,-151.0,0.00032876,30]
[392401494,1761433920229,-500.0,0.00032876,9]
[392401495,1761433920288,-500.0,0.00032876,9]
[392401496,1761433920359,-500.0,0.00032876,9]
[392401499,1761433920407,-151.0,0.00032876,30]
[392401501,1761433920489,-500.00000001,0.00032876,9]
[392401502,1761433920541,-181.88194,0.00032876,30]
[392401505,1761433920629,-1195.30935,0.0003288,2]
[392401506,1761433920771,-11671.2645481,0.0003289,3]
[392401508,1761433920900,-10900.0,0.000329,12]
[392401511,1761433921016,-300.0,0.00032919,2]
[392401513,1761433921095,-168.0,0.0003298,7]
[392401515,1761433921134,-11671.2645481,0.0003298,3]
[392401516,1761433921188,-12861.1805197,0.0003298,3]
[392401518,1761433921236,-23342.5290962,0.0003299,3]
[392401520,1761433921260,-25722.3610394,0.0003299,3]
[392401522,1761433921275,-595.37131296,0.00032993,2]
[392401523,1761433921315,-300.0,0.00032999,10]
[392401527,1761433921497,-300.0,0.00032999,10]
[392401528,1761433921529,-500.0,0.00032999,9]
[392401531,1761433921629,-500.0,0.00032999,9]
[392401532,1761433921689,-54353.62677554,0.00033,2]
[392401534,1761433921797,-695.67004365,0.00033,120]
[392401536,1761433921812,-500.7061365,0.00033,2]
[392401539,1761433921917,-12861.1805197,0.00033008,3]
[392401540,1761433921960,-11671.2645481,0.00033018,3]
[392401543,1761433922013,-168.0,0.00033019,2]
[392401544,1761433922104,-12861.1805197,0.0003306,3]
[392401546,1761433922120,-11671.2645481,0.0003307,3]
[392401548,1761433922138,-64305.9025985,0.0003307,3]
[392401550,1761433922193,-11671.2645481,0.00033071,3]
[392401552,1761433922394,-508.79836589,0.00033073,5]
[392401554,1761433922473,-500.0,0.00033073,5]
[392401556,1761433922573,-501.66466946,0.00033073,5]
[392401558,1761433922643,-500.0,0.00033073,5]
[392401560,1761433922668,-501.04238731,0.00033073,5]
[392401562,1761433922801,-268.47763589,0.00033073,5]
[392401564,1761433922868,-500.0,0.00033073,5]
[392401566,1761433922919,-500.0,0.00033073,5]
[392401568,1761433923015,-500.0,0.00033073,5]
[392401569,1761433923081,-430.06809489,0.00033073,5]
[392401572,1761433923164,-160.26119457,0.00033073,5]
[392401573,1761433923192,-500.0,0.00033073,5]
[392401576,1761433923244,-169.92826557,0.00033073,2]
[392401577,1761433923262,-501.26879217,0.00033073,5]
[392401579,1761433923360,-500.0,0.00033073,5]
[392401582,1761433923408,-500.0,0.00033073,5]
[392401583,1761433923449,-200.0,0.00033073,5]
[392401586,1761433923493,-500.0,0.00033073,5]
[392401588,1761433923592,-500.0,0.00033073,5]
[392401590,1761433923605,-500.0,0.00033073,5]
[392401593,1761433923669,-500.0,0.00033073,5]
[392401594,1761433923704,-300.0,0.00033079,10]
[392401595,1761433923740,-300.0,0.00033079,10]
[392401597,1761433923752,-300.0,0.00033079,10]
[392401600,1761433923833,-300.0,0.00033079,10]
[392401602,1761433923856,-59159.19847095,0.0003308,3]
[392401614,1761433924688,-506.66296033,0.00032875,9]
[392401616,1761433924779,-500.0,0.00032876,9]
[392401620,1761433924853,-1158.34857037,0.0003308,3]
[392401621,1761433924936,-1667.3183792,0.0003308,3]
[392401642,1761433926636,-2039.3643,0.00032776,2]
[392401644,1761433926698,-151.0,0.00032864,30]
[392401646,1761433926737,-151.0,0.00032864,30]
[392401647,1761433926837,-151.0,0.00032864,30]
[392401650,1761433926916,-151.0,0.00032864,30]
[392401652,1761433927131,-265.639331,0.00032864,30]
[392401654,1761433927219,-151.0,0.00032866,30]
[392401655,1761433927261,-500.0,0.00032876,9]
[392401657,1761433927296,-500.0,0.00032876,9]
[392401660,1761433927358,-546.68618896,0.00032876,9]
[392401661,1761433927408,-500.0,0.00032876,9]
[392401663,1761433927484,-515.44,0.00032876,9]
[392401665,1761433927589,-500.0,0.00032876,9]
[392401668,1761433927792,-151.0,0.00032876,30]
[392401671,1761433927889,-500.0,0.00032876,9]
[392401673,1761433927955,-151.0,0.00032876,30]
[392401675,1761433928020,-580.39552093,0.00032876,9]
[392401678,1761433928265,-500.0,0.00032876,9]
[392401679,1761433928305,-1049.840597,0.0003308,3]
[392401682,1761433928441,-520.07902086,0.00032876,9]
[392401684,1761433928536,-13500.99971684,0.0003308,3]
[392401693,1761433929329,-500.0,0.00032177,2]
[392401695,1761433929423,-500.0,0.00032177,2]
[392401697,1761433929603,-500.0,0.00032177,2]
[392401699,1761433929773,-500.0,0.00032876,9]
[392401702,1761433930030,-500.0,0.00032876,9]
[392401703,1761433930165,-331.28149765,0.0003308,3]
[392402393,1761434034718,10000.0,0.00031507,120]
[392402403,1761434044709,10000.0,0.00031507,120]
[392402427,1761434089627,313.0,0.00031507,120]
[392402442,1761434158760,163.56,0.00015983,2]
[392402443,1761434158873,163.56,0.00019979,2]
[392402449,1761434243444,500.0,0.00036919,50]
[392402538,1761434415568,-163.56,0.00023975,2]
[392402788,1761434693543,20918.79927306,0.00036919,120]
[392402794,1761434700467,160.0,0.00024,2]
[392402805,1761434708182,19676.44,0.00015,2]
[392402806,1761434708218,11734.00564894,0.00015,2]
[392402911,1761434870016,8125.19738666,0.00013,15]
[392402913,1761434874768,1313.08968281,0.00036919,50]
[392403131,1761435032325,-163.56,0.00027971,2]
[392403133,1761435032335,-150.0,0.00030008,4]
[392403135,1761435032344,-153.62878228,0.00030008,4]
[392403136,1761435032353,-150.0,0.00030008,4]
[392403137,1761435032362,-150.0,0.00030008,4]
[392403138,1761435032371,-997.2063288,0.00031622,120]
[392403139,1761435032456,-829.1736712,0.00031622,120]
[392403140,1761435032465,-784.37,0.00031627,2]
[392403141,1761435032476,-564.52,0.00031648,2]
[392403142,1761435032485,-150.0,0.00031659,2]
[392403143,1761435032494,-150.0,0.00031659,120]
[392403144,1761435032503,-1000.0,0.00031704,2]
[392403145,1761435032512,-200.0,0.00031732,2]
[392403146,1761435032521,-699.45,0.00031842,2]
[392403147,1761435032530,-1600.0,0.00031899,3]
[392403148,1761435032540,-999.0,0.000319,3]
[392403149,1761435032549,-156.71,0.00031928,2]
[392403150,1761435032558,-400.0,0.0003194,3]
[392403151,1761435032567,-696.68,0.00031941,2]
[392403152,1761435032576,-51.33652774,0.00031941,2]
[392403153,1761435032591,-424.12347226,0.00031941,2]
[392403154,1761435032730,-669.46902774,0.00031941,2]
[392403156,1761435032742,-27.21097226,0.00031941,2]
[392403157,1761435032751,-631.03902774,0.00031941,2]
[392403158,1761435032762,-855.36097226,0.00031941,2]
[392403159,1761435032771,-163.56,0.00031967,2]
[392403161,1761435032780,-204.58,0.0003197,2]
[392403163,1761435032789,-404.39,0.00031991,120]
[392403165,1761435032797,-162.1462084,0.00032,5]
[392403167,1761435032806,-417.40202619,0.00032,120]
[392403169,1761435032815,-277.35679052,0.0003201,2]
[392403170,1761435032824,-842.41998864,0.00032029,2]
[392403173,1761435032838,-1010.00001136,0.00032029,2]
[392403175,1761435032847,-300.0,0.00032035,7]
[392403177,1761435032856,-1459.11,0.00032041,2]
[392403179,1761435032865,-176.3,0.00032466,2]
[392403181,1761435032874,-414.24,0.00032466,2]
[392403183,1761435032882,-150.0,0.00032466,2]
[392403185,1761435032891,-228.88557422,0.0003267,33]
[392403187,1761435032902,-450.77242578,0.0003267,33]
[392403189,1761435032911,-986.45198,0.0003267,2]
[392403191,1761435032920,-110.24957029,0.0003267,2]
[392403194,1761435032935,-427.455,0.0003267,2]
[392403196,1761435032946,-448.74740971,0.0003267,2]
[392403198,1761435032955,-39.66259029,0.00032693,2]
[392403270,1761435038278,-360.33740971,0.00032693,2]
[392403271,1761435038287,-500.0,0.00032712,2]
[392403272,1761435038297,-500.0,0.00032712,2]
[392403273,1761435038306,-500.0,0.00032712,2]
[392403275,1761435038315,-500.0,0.00032712,2]
[392403276,1761435038324,-500.0,0.00032712,2]
[392403277,1761435038334,-500.0,0.00032712,2]
[392403278,1761435038343,-500.0,0.00032712,2]
[392403279,1761435038352,-500.0,0.00032712,2]
[392403280,1761435038361,-500.0,0.00032712,2]
[392403281,1761435038370,-500.0,0.00032712,2]
[392403282,1761435038386,-500.0,0.00032712,2]
[392403283,1761435038395,-500.0,0.00032712,2]
[392403284,1761435038405,-500.0,0.00032712,2]
[392403285,1761435038414,-500.0,0.00032712,2]
[392403286,1761435038423,-500.0,0.00032712,2]
[392403287,1761435038432,-500.0,0.00032712,2]
[392403288,1761435038442,-500.0,0.00032712,2]
[392403289,1761435038451,-500.0,0.00032712,2]
[392403290,1761435038459,-500.0,0.00032712,2]
[392403291,1761435038468,-500.0,0.00032712,2]
[392403292,1761435038477,-500.0,0.00032712,2]
[392403293,1761435038486,-277.49121972,0.00032712,2]
[392403294,1761435038495,-500.0,0.00032712,2]
[392403295,1761435038504,-500.0,0.00032712,2]
[392403296,1761435038513,-500.0,0.00032712,2]
[392403297,1761435038522,-500.0,0.00032712,2]
[392403298,1761435038532,-500.0,0.00032712,2]
[392403299,1761435038541,-500.0,0.00032712,2]
[392403300,1761435038550,-500.0,0.00032712,2]
[392403301,1761435038559,-500.0,0.00032712,2]
[392403302,1761435038568,-500.0,0.00032712,2]
[392403303,1761435038578,-500.0,0.00032712,2]
[392403304,1761435038587,-500.0,0.00032712,2]
[392403305,1761435038596,-500.0,0.00032712,2]
[392403306,1761435038605,-500.0,0.00032712,2]
[392403307,1761435038614,-204.25137057,0.00032712,2]
[392403308,1761435038626,-295.74862943,0.00032712,2]
[392403309,1761435038635,-500.0,0.00032712,2]
[392403310,1761435038644,-500.0,0.00032712,2]
[392403311,1761435038653,-500.0,0.00032712,2]
[392403312,1761435038663,-650.0,0.00032712,2]
[392403313,1761435038672,-2357.994,0.00032714,2]
[392403314,1761435038681,-1105.605,0.00032714,2]
[392403315,1761435038691,-1518.26937389,0.00032714,2]
[392403316,1761435038702,-1287.45005375,0.00032714,2]
[392403317,1761435038713,-682.28057236,0.00032714,2]
[392403318,1761435038722,-151.0,0.00032753,2]
[392403319,1761435038731,-111.68603408,0.00032753,2]
[392403320,1761435038750,-287.71201488,0.00032753,2]
[392403321,1761435038759,-155.78798512,0.00032753,2]
[392403322,1761435038770,-64.7398898,0.00032753,2]
[392403323,1761435038779,-574.12855637,0.00032753,2]
[392403324,1761435038788,-233.61714306,0.00032753,2]
[392403325,1761435038798,-88.99355694,0.00032753,2]
[392403326,1761435038807,-250.0,0.00032753,2]
[392403327,1761435038817,-250.0,0.00032753,2]
[392403328,1761435038826,-250.0,0.00032753,2]
[392403329,1761435038835,-500.0,0.00032753,2]
[392403330,1761435038844,-250.0,0.00032753,2]
[392403331,1761435038854,-500.0,0.00032753,2]
[392403332,1761435038864,-250.0,0.00032753,2]
[392403333,1761435038873,-500.0,0.00032753,2]
[392403334,1761435038883,-250.0,0.00032753,2]
[392403336,1761435039020,-500.0,0.00032753,2]
[392403337,1761435039030,-250.0,0.00032753,2]
[392403338,1761435039039,-500.0,0.00032753,2]
[392403339,1761435039048,-250.0,0.00032753,2]
[392403340,1761435039058,-500.0,0.00032753,2]
[392403341,1761435039067,-250.0,0.00032753,2]
[392403342,1761435039076,-500.0,0.00032753,2]
[392403343,1761435039085,-500.0,0.00032753,2]
[392403344,1761435039094,-250.0,0.00032753,2]
[392403345,1761435039104,-500.0,0.00032753,2]
[392403346,1761435039117,-500.0,0.00032753,2]
[392403347,1761435039126,-250.0,0.00032753,2]
[392403348,1761435039136,-500.0,0.00032753,2]
[392403349,1761435039145,-500.0,0.00032753,2]
[392403350,1761435039155,-500.0,0.00032753,2]
[392403351,1761435039165,-500.0,0.00032753,2]
[392403352,1761435039175,-500.0,0.00032753,2]
[392403353,1761435039185,-500.0,0.00032753,2]
[392403354,1761435039194,-500.0,0.00032753,2]